Workbook

Sheet Календарь старый (hidden)
E1: Приложение №2 к Договору №8190____________ от "_____" _____________2013г.
A4: Календарный план
A5: на выполнение проектно-изыскательских работ:
A9: Наименование проектной организации
A11: Наименование организации заказчика | D11: ООО "Газпромнефть-Развитие"
A13: № этапа | B13: Наименование этапов | C13: Срок выполнения работ | E13: Расчетная цена
C14: Начало | D14: Окончание | E14: руб.без НДС | F14: НДС 18% | G14: руб.с НДС
A15: 1. | B15: Инженерные изыскания | C15: 2013-03-01 | D15: 2013-08-05
A16: 1.1 | B16: Инженерные изыскания на линейные объекты (нефтепровод, ВЛ) | C16: 2013-03-01 | D16: 2013-06-15
A17: 1.1.1 | B17: Мобилизация | C17: 2013-03-04 | D17: 2013-03-20 | E17: =#REF! -> 
A18: 1.1.2 | B18: ПВО | C18: 2013-03-11 | D18: 2013-04-01
A19: 1.1.3 | B19: Полевые изыскания (Топографическая съемка М 1:2000, М 1:500 закрепление проектных трасс на местности, с шириной полосы 120м.) | C19: 2013-03-11 | D19: 2013-05-15
A20: 1.1.4 | B20: Камеральная обработка полевых материалов, промежуточные инженерно-геодезические отчёты | C20: 2013-04-22 | D20: 2013-05-10
A21: 1.1.5 | B21: Инженерно-геологические изыскания | C21: 2013-03-20 | D21: 2013-05-15
A22: 1.1.6 | B22: Инженерно-экологические изыскания | C22: 2013-03-20 | D22: 2013-05-15
A23: 1.1.7 | B23: Выполнение лабораторных работ | C23: 2013-04-21 | D23: 2013-05-20
A24: 1.1.8 | B24: Историко-культурные изыскания | C24: 2013-04-01 | D24: 2013-05-15
A25: 1.1.9 | B25: Камеральная обработка материалов, написание отчета по ИИ. | C25: 2013-04-21 | D25: 2013-06-15
A26: 1.2 | B26: Инженерные изыскания (площадка ПСП, изыскания источников водоснабжения). | C26: 2013-03-01 | D26: 2013-06-03
A27: 1.2.1 | B27: Мобилизация | C27: 2013-03-04 | D27: 2013-03-20
A28: 1.2.2 | B28: ПВО (ПСП) | C28: 2013-03-11 | D28: 2013-04-01
A29: 1.2.3 | B29: Полевые изыскания (Топографическая съемка М 1:2000, М 1:500 закрепление проектных трасс на местности, с шириной полосы 120м.) | C29: 2013-03-11 | D29: 2013-05-15
A30: 1.2.4 | B30: Камеральная обработка полевых материалов, промежуточные инженерно-геодезические отчёты | C30: 2013-04-22 | D30: 2013-05-10
A31: 1.2.5 | B31: Инженерные геологические изыскания | C31: 2013-03-20 | D31: 2013-05-15
A32: 1.2.6 | B32: Инженерно-экологические изыскания | C32: 2013-03-20 | D32: 2013-05-15
A33: 1.2.7 | B33: Изыскания источников водоснабжения (водозаборные скважины) | C33: 2013-04-01 | D33: 2013-04-21
A34: 1.2.8 | B34: Выполнение лабораторных работ | C34: 2013-04-21 | D34: 2013-05-20
A35: 1.2.9 | B35: Камеральная обработка материалов, написание отчета по ИИ. | C35: 2013-04-21 | D35: 2013-06-03
A36: 1.3 | B36: Инженерные изыскания (карьеры). | C36: 2013-03-01 | D36: 2013-08-05
A37: 1.3.1 | B37: Мобилизация | C37: 2013-03-04 | D37: 2013-03-20
A38: 1.3.2 | B38: ПВО | C38: 2013-03-11 | D38: 2013-04-01
A39: 1.3.3 | B39: Полевые изыскания (Топографическая съемка М 1:2000, М 1:500 закрепление проектных трасс на местности, с шириной полосы 120м.) | C39: 2013-03-11 | D39: 2013-05-15
A40: 1.3.4 | B40: Камеральная обработка полевых материалов, промежуточные инженерно-геодезические отчёты | C40: 2013-04-22 | D40: 2013-05-10
A41: 1.3.5 | B41: Инженерные геологические изыскания | C41: 2013-03-20 | D41: 2013-05-15
A42: 1.3.6 | B42: Инженерно-экологические изыскания | C42: 2013-03-20 | D42: 2013-05-15
A43: 1.3.7 | B43: Выполнение лабораторных работ | C43: 2013-04-21 | D43: 2013-05-20
A44: 1.3.8 | B44: Камеральная обработка материалов, написание отчета по ИИ. | C44: 2013-04-21 | D44: 2013-06-03
A45: 1.3.9 | B45: Подсчёт запасов ОПИ | C45: 2013-06-04 | D45: 2013-07-08
A46: 1.3.10 | B46: Постановка на учёт запасов ОПИ | C46: 2013-07-08 | D46: 2013-08-05
A47: 2. | B47: Подготовка, оформление, согласование и утверждение комплекса землеустроительной документации | C47: 2013-01-21 | D47: 2013-07-01
A48: 2.1. | B48: ЗУР на напорный нефтепровод
A49: 2.1.1 | B49: Организация проведения общественных слушаний (в т.ч. Информационное обеспечение, публикация в СМИ )
A50: 2.1.2 | B50: Получении сопутствующих заключений к проекту, историко-культурная экспертиза, расчет убытков землепользователей
A51: 2.1.3 | B51: Оформление и утверждение акта выбора земель. Получение распоряжения постановления о предварительном согласовании размещения ЗУ
A52: 2.1.4 | B52: Оформление и утверждение акта выбора земель (карьеры). Получение распоряжения постановления о предварительном согласовании размещения ЗУ
A53: 2.1.5 | B53: Заключение договора с районным отделением Ассоциации коренных малочисленных народов Севера
A54: 2.1.6 | B54: Постановка земельных участков на ГКУ
A55: 2.1.7 | B55: Перевод земель иных категорий в земли промышленности
A56: 2.1.8 | B56: Внесение изменений в ГКУ и формирование земдела
A57: 2.1.9 | B57: Оформление распоряжения главы района о предоставлении земельных участков и договоров аренды земельных участков
A58: 2.1.10 | B58: Оформление и утверждение градостроительных планов
A59: 2.1.11 | B59: Оформление, согласование и регистрация договора аренды
A60: 2.2. | B60: ЗУР на ПСП
A61: 2.2.1 | B61: Организация проведения общественных слушаний (в т.ч. Информационное обеспечение, публикация в СМИ )
A62: 2.2.2 | B62: Получении сопутствующих заключений к проекту, историко-культурная экспертиза, расчет убытков землепользователей
A63: 2.2.3 | B63: Оформление и утверждение акта выбора земель. Получение распоряжения постановления о предварительном согласовании размещения ЗУ
A64: 2.2.4 | B64: Оформление и утверждение акта выбора земель. Получение распоряжения постановления о предварительном согласовании размещения ЗУ
A65: 2.2.5 | B65: Заключение договора с районным отделением Ассоциации коренных малочисленных народов Севера
A66: 2.2.6 | B66: Постановка земельных участков на ГКУ
A67: 2.2.7 | B67: Перевод земель иных категорий в земли промышленности
A68: 2.2.8 | B68: Внесение изменений в ГКУ и формирование земдела
A69: 2.2.9 | B69: Оформление распоряжения главы района о предоставлении земельных участков и договоров аренды земельных участков
A70: 2.2.10 | B70: Оформление и утверждение градостроительных планов
A71: 2.2.11 | B71: Оформление, согласование и регистрация договора аренды
A72: 2.3. | B72: ЗУР на карьеры
A73: 2.3.1 | B73: Организация проведения общественных слушаний (в т.ч. Информационное обеспечение, публикация в СМИ )
A74: 2.3.2 | B74: Получении сопутствующих заключений к проекту, историко-культурная экспертиза, расчет убытков землепользователей
A75: 2.3.3 | B75: Оформление и утверждение акта выбора земель. Получение распоряжения постановления о предварительном согласовании размещения ЗУ
A76: 2.3.4 | B76: Оформление и утверждение акта выбора земель. Получение распоряжения постановления о предварительном согласовании размещения ЗУ
A77: 2.3.5 | B77: Заключение договора с районным отделением Ассоциации коренных малочисленных народов Севера
A78: 2.3.6 | B78: Постановка земельных участков на ГКУ
A79: 2.3.7 | B79: Перевод земель иных категорий в земли промышленности
A80: 2.3.8 | B80: Внесение изменений в ГКУ и формирование земдела
A81: 2.3.9 | B81: Оформление распоряжения главы района о предоставлении земельных участков и договоров аренды земельных участков
A82: 2.3.10 | B82: Оформление и утверждение градостроительных планов
A83: 2.3.11 | B83: Оформление, согласование и регистрация договора аренды
A84: 3. | B84: Проектная документация | C84: 2013-02-25 | D84: 2014-03-28
A85: 3.1. | B85: Сбор и подготовка исходных данных | C85: 2013-02-25 | D85: 2013-03-29
A86: 3.1.1 | B86: Подготовка запросов и получение исходных данных | C86: 2013-02-25 | D86: 2013-03-29
A87: 3.2. | B87: ОТР | C87: 2013-02-25 | D87: 2013-06-10
A88: 3.2.1 | B88: Основные технические решения нефтепровод | C88: 2013-02-25 | D88: 2013-05-27
A89: 3.2.2 | B89: Основные технические решения ПСП | C89: 2013-02-25 | D89: 2013-06-10
A90: 3.3. | B90: Проектная документация карьеры | C90: 2013-06-05 | D90: 2014-01-24
A91: 3.3.1 | B91: Проектная документация карьеры | C91: 2013-06-05 | D91: 2013-10-25
A92: 3.3.2 | B92: Регистрация карьеров в РГТН | C92: 2013-10-28 | D92: 2014-01-24
A93: 3.4. | B93: Проектная документация напорный нефтепровод | C93: 2013-06-15 | D93: 2014-01-24
A94: 3.4.1 | B94: Проектная документация напорный нефтепровод (оплата 60%) | C94: 2013-06-15 | D94: 2013-10-25
A95: 3.4.2 | B95: Проектная документация напорный нефтепровод (оплата 40%) | C95: 2013-10-28 | D95: 2014-01-24
A96: 3.5. | B96: Проектная документация ПСП | C96: 2013-06-03 | D96: 2014-01-24
A97: 3.5.1 | B97: Проектная документация ПСП (оплата 60%) | C97: 2013-06-03 | D97: 2013-10-25
A98: 3.5.2 | B98: Проектная документация ПСП (оплата 40%) | C98: 2013-10-28 | D98: 2014-01-24
A99: 3.6. | B99: Сборник ОЛ и предварительных спецификаций | C99: 2013-08-01 | D99: 2013-09-02
A100: 3.7. | B100: Метрологическая экспертиза | C100: 2013-09-02 | D100: 2014-01-24
A101: 3.8. | B101: Согласование проектной документации с АК "Транснефть" | C101: 2013-11-04 | D101: 2014-12-20
A102: 3.9. | B102: Проведение процедуры HAZOP | C102: 2013-10-15 | D102: 2013-12-20
A103: 3.10. | B103: Проведение государственной экспертизы проектной документации | C103: 2014-01-27 | D103: 2014-03-28
A104: 3.11. | B104: Сопровождение ПД на экспертизу | C104: 2014-01-27 | D104: 2014-03-28
A105: 3.12. | B105: Командировочные расходы | C105: 2013-03-01 | D105: 2014-03-28
A106: 4. | B106: Рабочая документация | C106: 2013-11-04 | D106: 2014-03-28
A107: 4.1 | B107: Напорный нефтепровод, ВЛ | C107: 2013-11-04 | D107: 2014-03-28
A108: 4.1.1 | B108: Напорный нефтепровод | C108: 2013-11-04 | D108: 2014-03-28
A109: 4.1.2 | B109: ВЛ | C109: 2013-11-04 | D109: 2014-03-28
A110: 4.2 | B110: ПСП | C110: 2013-11-04 | D110: 2014-03-28
A111: 4.2.1 | B111: технология 1 часть ( 25% уточняется по факту). Резервуарный парк, насосная внешней откачки | C111: 2013-11-04 | D111: 2013-12-23
A112: 4.2.2 | B112: технология 2 часть ( 25% уточняется по факту) Пункт подогрева нефти, СИКН, площадка под фильтры грязеуловители, узел с предохранительными устройствами, узел регулирования давления, резервуары-накопители подтоварной воды, аварийные резервуары, резервуары для хранения топлива, | C112: 2013-12-24 | D112: 2014-01-20
A113: 4.2.3 | B113: технология 3 часть ( 25% уточняется по факту) Насосная станция пожаротушения, резервуары противопожарного запаса, КНС, насосная станция хоз.-питевого водоснабжения, котельная, пож.депо, станция очистки производственно-дождевых сточных вод | C113: 2014-01-21 | D113: 2014-02-24
A114: 4.2.4 | B114: технология 4 часть ( 25% уточняется по факту) Сети технологические, лаборатории, операторная,открытая и закрытая стоянка техники, служебно-бытовой корпус | C114: 2014-02-25 | D114: 2014-03-28
A115: 4.2.5 | B115: ГП | C115: 2020-11-04 | D115: 2014-03-28
A116: 4.2.6 | B116: Электроснабжение | C116: 2020-11-04 | D116: 2014-03-28
A117: 4.2.7 | B117: Термостабилизация грунтов оснований | C117: 2013-11-04 | D117: 2013-12-20
A118: 4.2.8 | B118: АСУ ТП | C118: 2020-11-04 | D118: 2014-03-28
A119: 4.2.9 | B119: Связь | C119: 2020-11-04 | D119: 2014-03-28
A120: 4.2.10 | B120: Комплексная система безопасности (с/п ДОАО "Газпроектинжиниринг") | C120: 2020-11-04 | D120: 2014-02-21
A121: 4.2.11 | B121: ПЛА (напорный нефтепровод) | C121: 2013-12-09 | D121: 2014-03-28
A122: 4.2.12 | B122: ПЛА (ПСП) | C122: 2013-12-09 | D122: 2014-03-28
A123: 4.2.13 | B123: ПЛАРН (напорный нефтепровод) | C123: 2013-12-09 | D123: 2014-03-28
A124: 4.2.14 | B124: ПЛАРН (ПСП) | C124: 2013-12-09 | D124: 2014-03-28
A125: 4.2.15 | B125: Технологические регламенты (напорный нефтепровод) | C125: 2013-08-16 | D125: 2014-02-23
A126: 4.2.16 | B126: Технологические регламенты (ПСП) | C126: 2013-08-16 | D126: 2014-02-23
A128: Итого: | E128: =SUM(E15:E127) ->  | F128: =SUM(F15:F127) -> 0 | G128: 0
A131: Главный инженер проекта
A134: Генподрядчик: | E134: Подрядчик:
A135: Генеральный директор | E135: Управляющий директор
A136: ООО "Газпромнефть-Развитие"
A139: ______________ Д.А. Сугаипов

Sheet Смета № 7 АСУ
A1: Смета
A2: на проектные работы
A4: Вид работ | B4: АСУ ТП
A6: Наименование проектной организации
A8: Наименование заказчика
A10: Коэффициенты к установленным ценам
A11: Примененный Коэффициент | D11: Расчет коэффициента | G11: Итого коэффициент
A12: K1 | B12: = | C12: 0.7 | D12: =C12&"*"&C13 -> 0,7*1,3 | G12: =C12*C13 -> 0.91
A13: K10.1 | B13: = | C13: 1.3
A15: Трудоемкость разработки проектной документации на АСУТП
A16: Основные факторы, определяющие трудоемкость разработки | C16: Количество баллов для частей проектной документации (Бч)
C17: ОР | D17: ОО | E17: ИО | F17: ТО | G17: МО | H17: ПО
A18: Характеристика процесса (Ф2): | B18: Непрерывный | C18: =INDEX($N$78:$T$135,MATCH(B18,$N$78:$N$135,0),2) -> 1 | D18: =INDEX($N$78:$T$135,MATCH(B18,$N$78:$N$135,0),3) -> 1 | E18: =INDEX($N$78:$T$135,MATCH(B18,$N$78:$N$135,0),4) -> 1 | F18: =INDEX($N$78:$T$135,MATCH(B18,$N$78:$N$135,0),5) -> 1 | G18: =INDEX($N$78:$T$135,MATCH(B18,$N$78:$N$135,0),6) -> 1 | H18: =INDEX($N$78:$T$135,MATCH(B18,$N$78:$N$135,0),7) -> 1
A19: Кол-во тех. операций (Ф5): | B19: до 5 | C19: =INDEX($N$78:$T$135,MATCH(B19,$N$78:$N$135,0),2) -> 1 | D19: =INDEX($N$78:$T$135,MATCH(B19,$N$78:$N$135,0),3) -> 1 | E19: =INDEX($N$78:$T$135,MATCH(B19,$N$78:$N$135,0),4) -> 1 | F19: =INDEX($N$78:$T$135,MATCH(B19,$N$78:$N$135,0),5) -> 1 | G19: =INDEX($N$78:$T$135,MATCH(B19,$N$78:$N$135,0),6) -> 1 | H19: =INDEX($N$78:$T$135,MATCH(B19,$N$78:$N$135,0),7) -> 1
A20: Степень развитости информационных функций (Ф6): | B20: I степень | C20: 1 | D20: 1 | E20: 1 | F20: 1 | G20: 1 | H20: 1
A21: Степень развитости управляющих функций (Ф7): | B21: I степень | C21: 1 | D21: 1 | E21: 1 | F21: 1 | G21: 1 | H21: 1
A22: Режим выполнения управляющих функций (Ф8): | B22: Автоматизированный диалоговый режим | C22: 2 | D22: 2 | E22: 2 | F22: 2 | G22: 3 | H22: 3
A23: Количество переменных, измеряемых, контролируемых и регистрируемых АСУТП (Ф9): | B23: до 20 | C23: 1 | D23: 1 | E23: 1 | F23: 1 | G23: 1 | H23: 1
A24: Количество управляющих воздействий, вырабатываемых АСУТП (Ф10): | B24: до 5 | C24: 1 | D24: 1 | E24: 1 | F24: 1 | G24: 1 | H24: 1
A25: Итого баллов | C25: =SUM(C18:C24) -> 8 | D25: =SUM(D18:D24) -> 8 | E25: 8 | F25: 8 | G25: 9 | H25: 9
A26: Стоимость 1 балла | C26: 2.04 | D26: 1.24 | E26: 1.83 | F26: 4.38 | G26: 4.92 | H26: 6
A27: Базовая цена двухстадийной разработки проектной документации на АСУТП, тыс.руб. | C27: =C25*C26 -> 16.32 | D27: 9.92 | E27: 14.64 | F27: 35.04 | G27: 44.28 | H27: 54
A28: Примененный коэффициент к установленным ценам | C28: =$G$12 -> 0.91 | D28: 0.91 | E28: 0.91 | F28: 0.91 | G28: 0.91 | H28: 0.91
A29: Итого базовая цена двухстадийной разработки проектной документации на АСУТП, тыс.руб. | C29: =C27*C28 -> 14.8512 | D29: 9.0272 | E29: 13.3224 | F29: 31.8864 | G29: 40.2948 | H29: 49.14
A30: Коэффициент на стадию Проектная документация | C30: 0.4 | D30: 0.4 | E30: 0.4 | F30: 0.4 | G30: 0.4 | H30: 0.4
A31: Коэффициент на стадию Рабочая документация | C31: =1-C30 -> 0.6 | D31: 0.6 | E31: 0.6 | F31: 0.6 | G31: 0.6 | H31: 0.6
A32: Итого стоимость проектной документации на АСУ ТП: | C32: =C29*C30 -> 5.94048 | D32: 3.61088 | E32: 5.32896 | F32: 12.75456 | G32: 16.11792 | H32: 19.656
A33: Итого стоимость рабочей документации на АСУ ТП: | C33: =C31*C29 -> 8.91072 | D33: 5.41632 | E33: 7.99344 | F33: 19.13184 | G33: 24.17688 | H33: 29.484
C35: К | E35: ПД | G35: РД
A36: Итоговая стоимость ПД (сумма ОР, ОО, ИО, ТО, МО, ПО) | E36: =SUM(C32:H32) -> 63.4088 | G36: =SUM(C33:H33) -> 95.1132
A37: С учетом коэффициента инфляции | C37: 25 | E37: =E36*C37 -> 1585.22 | G37: =G36*C37 -> 2377.83
A38: С учетом районного коэффициента | C38: 1.08 | E38: =E37*C38 -> 1712.0376 | G38: =G37*C38 -> 2568.0564
A40: Итого по смете, тыс. руб. | E40: =E38 -> 1712.0376 | G40: =G38 -> 2568.0564
A41: НДС, 18% | E41: =E40*0.18 -> 308.166768 | G41: =G40*0.18 -> 462.250152
A42: Всего с НДС, тыс. руб. | E42: =E40+E41 -> 2020.204368 | G42: =G40+G41 -> 3030.306552
N75: Основные факторы, определяющие трудоемкость разработки | O75: Количество баллов для частей проектной документации (Бч)
O76: ОР | P76: ОО | Q76: ИО | R76: ТО | S76: МО | T76: ПО
N77: 1 | O77: 2 | P77: 3 | Q77: 4 | R77: 5 | S77: 6 | T77: 7
N78: Непрерывный | O78: 1 | P78: 1 | Q78: 1 | R78: 1 | S78: 1 | T78: 1
N79: Полунепрерывный | O79: 2 | P79: 1 | Q79: 2 | R79: 1 | S79: 2 | T79: 2
N80: Непрерывно-дискретный - I | O80: 3 | P80: 3 | Q80: 3 | R80: 3 | S80: 3 | T80: 3
N81: Непрерывно-дискретный - II | O81: 4 | P81: 3 | Q81: 4 | R81: 3 | S81: 4 | T81: 4
N82: Циклический | O82: 3 | P82: 2 | Q82: 3 | R82: 2 | S82: 3 | T82: 3
N83: Дискретный | O83: 2 | P83: 2 | Q83: 2 | R83: 2 | S83: 3 | T83: 3
N84: до 5 | O84: 1 | P84: 1 | Q84: 1 | R84: 1 | S84: 1 | T84: 1
N85: св. 5 до 10 | O85: 2 | P85: 2 | Q85: 2 | R85: 2 | S85: 2 | T85: 2
N86: св. 10 до 20 | O86: 3 | P86: 2 | Q86: 3 | R86: 2 | S86: 3 | T86: 3
N87: св. 20 до 35 | O87: 4 | P87: 3 | Q87: 4 | R87: 3 | S87: 4 | T87: 4
N88: св. 35 до 50 | O88: 5 | P88: 3 | Q88: 5 | R88: 3 | S88: 5 | T88: 5
N89: св. 50 до 70 | O89: 6 | P89: 4 | Q89: 6 | R89: 4 | S89: 6 | T89: 6
N90: св. 70 до 100 | O90: 7 | P90: 5 | Q90: 7 | R90: 5 | S90: 7 | T90: 7
N91: 2.8. за каждые 50 свыше 100 | O91: 1 | P91: 1 | Q91: 1 | R91: 1 | S91: 1 | T91: 1
N92: I степень | O92: 1 | P92: 1 | Q92: 1 | R92: 1 | S92: 1 | T92: 1
N93: II степень | O93: 3 | P93: 2 | Q93: 3 | R93: 3 | S93: 3 | T93: 3
N94: III степень | O94: 6 | P94: 2 | Q94: 6 | R94: 5 | S94: 6 | T94: 6
N95: IV степень | O95: 9 | P95: 3 | Q95: 9 | R95: 8 | S95: 9 | T95: 9
N96: I степень | O96: 1 | P96: 1 | Q96: 1 | R96: 1 | S96: 1 | T96: 1
N97: II степень | O97: 3 | P97: 2 | Q97: 3 | R97: 3 | S97: 3 | T97: 3
N98: III степень | O98: 5 | P98: 2 | Q98: 5 | R98: 5 | S98: 5 | T98: 5
N99: IV степень | O99: 6 | P99: 3 | Q99: 7 | R99: 7 | S99: 7 | T99: 7
N100: V степень | O100: 8 | P100: 4 | Q100: 10 | R100: 9 | S100: 11 | T100: 11
N101: VI степень | O101: 9 | P101: 4 | Q101: 11 | R101: 10 | S101: 13 | T101: 13
N102: VII степень | O102: 10 | P102: 5 | Q102: 12 | R102: 11 | S102: 14 | T102: 14
N103: Автоматизированный «ручной» режим | O103: 1 | P103: 1 | Q103: 1 | R103: 1 | S103: 1 | T103: 1
N104: Автоматизированный режим «советчика» | O104: 1 | P104: 1 | Q104: 2 | R104: 1 | S104: 2 | T104: 2
N105: Автоматизированный диалоговый режим | O105: 2 | P105: 2 | Q105: 2 | R105: 2 | S105: 3 | T105: 3
N106: Автоматический режим косвенного управления | O106: 3 | P106: 2 | Q106: 3 | R106: 4 | S106: 4 | T106: 4
N107: Автоматический режим прямого цифрового управления | O107: 5 | P107: 3 | Q107: 5 | R107: 7 | S107: 7 | T107: 7
N108: до 20 | O108: 1 | P108: 1 | Q108: 1 | R108: 1 | S108: 1 | T108: 1
N109: св. 20 до 50 | O109: 2 | P109: 1 | Q109: 2 | R109: 2 | S109: 2 | T109: 2
N110: св. 50 до 100 | O110: 2 | P110: 2 | Q110: 3 | R110: 3 | S110: 3 | T110: 3
N111: св. 100 до 170 | O111: 3 | P111: 2 | Q111: 4 | R111: 4 | S111: 4 | T111: 4
N112: св. 170 до 250 | O112: 3 | P112: 3 | Q112: 5 | R112: 5 | S112: 5 | T112: 5
N113: св. 250 до 350 | O113: 4 | P113: 3 | Q113: 6 | R113: 6 | S113: 6 | T113: 6
N114: св. 350 до 470 | O114: 4 | P114: 4 | Q114: 7 | R114: 7 | S114: 7 | T114: 7
N115: св. 470 до 600 | O115: 5 | P115: 4 | Q115: 8 | R115: 8 | S115: 8 | T115: 8
N116: св. 600 до 800 | O116: 5 | P116: 5 | Q116: 9 | R116: 9 | S116: 9 | T116: 9
N117: св. 800 до 1000 | O117: 6 | P117: 5 | Q117: 10 | R117: 10 | S117: 10 | T117: 10
N118: св. 1000 до 1300 | O118: 7 | P118: 6 | Q118: 11 | R118: 11 | S118: 11 | T118: 11
N119: св. 1300 до 1600 | O119: 8 | P119: 6 | Q119: 12 | R119: 12 | S119: 12 | T119: 12
N120: св. 1600 до 2000 | O120: 9 | P120: 7 | Q120: 13 | R120: 13 | S120: 13 | T120: 13
N121: 6.14. за каждые 500 свыше 2000 | O121: 1 | P121: 1 | Q121: 1 | R121: 1 | S121: 1 | T121: 1
N122: до 5 | O122: 1 | P122: 1 | Q122: 1 | R122: 1 | S122: 1 | T122: 1
N123: св. 5 до 10 | O123: 2 | P123: 1 | Q123: 2 | R123: 2 | S123: 2 | T123: 2
N124: св. 10 до 20 | O124: 3 | P124: 2 | Q124: 3 | R124: 3 | S124: 3 | T124: 3
N125: св. 20 до 40 | O125: 3 | P125: 2 | Q125: 4 | R125: 4 | S125: 4 | T125: 4
N126: св. 40 до 60 | O126: 4 | P126: 3 | Q126: 5 | R126: 5 | S126: 5 | T126: 5
N127: св. 60 до 90 | O127: 4 | P127: 3 | Q127: 6 | R127: 6 | S127: 6 | T127: 6
N128: св. 90 до 120 | O128: 5 | P128: 4 | Q128: 7 | R128: 7 | S128: 7 | T128: 7
N129: св. 120 до 160 | O129: 5 | P129: 4 | Q129: 8 | R129: 8 | S129: 8 | T129: 8
N130: св. 160 до 200 | O130: 6 | P130: 5 | Q130: 9 | R130: 9 | S130: 9 | T130: 9
N131: св. 200 до 250 | O131: 7 | P131: 5 | Q131: 10 | R131: 10 | S131: 10 | T131: 10
N132: св. 250 до 300 | O132: 8 | P132: 6 | Q132: 11 | R132: 11 | S132: 11 | T132: 11
N133: св. 300 до 350 | O133: 9 | P133: 6 | Q133: 12 | R133: 12 | S133: 12 | T133: 12
N134: св. 350 до 400 | O134: 10 | P134: 7 | Q134: 13 | R134: 13 | S134: 13 | T134: 13
N135: 7.14. за каждые 70 свыше 400 | O135: 1 | P135: 1 | Q135: 1 | R135: 1 | S135: 1 | T135: 1
